Workbook

Sheet Danh sách kiểm kê
K2: Tô sáng các mục để đặt hàng lại? | L2: Có
B3: Để đặt hàng lại | C3: ID Kiểm kê | D3: Tên | E3: Mô tả | F3: Đơn giá | G3: Số lượng hàng còn | H3: Giá trị kiểm kê | I3: Mức độ Đặt hàng lại | J3: Thời gian Đặt hàng lại tính theo Ngày | K3: Số lượng hàng đặt lại | L3: Dừng nhập hàng?
B4: =IFERROR((Bảng_Danh_sách_Kiểm_kê[[#This Row],[Số lượng hàng còn]]<=Bảng_Danh_sách_Kiểm_kê[[#This Row],[Mức độ Đặt hàng lại]])*(Bảng_Danh_sách_Kiểm_kê[[#This Row],[Dừng nhập hàng?]]="")*valHighlight,0) -> 1 | C4: IN0001 | D4: Mục 1 | E4: Mô tả 1 | F4: 51.00 ₫ | G4: 25 | H4: =Bảng_Danh_sách_Kiểm_kê[[#This Row],[Đơn giá]]*Bảng_Danh_sách_Kiểm_kê[[#This Row],[Số lượng hàng còn]] -> 1,275.00 ₫ | I4: 29 | J4: 13 | K4: 50
B5: =IFERROR((Bảng_Danh_sách_Kiểm_kê[[#This Row],[Số lượng hàng còn]]<=Bảng_Danh_sách_Kiểm_kê[[#This Row],[Mức độ Đặt hàng lại]])*(Bảng_Danh_sách_Kiểm_kê[[#This Row],[Dừng nhập hàng?]]="")*valHighlight,0) -> 1 | C5: IN0002 | D5: Mục 2 | E5: Mô tả 2 | F5: 93.00 ₫ | G5: 132 | H5: =Bảng_Danh_sách_Kiểm_kê[[#This Row],[Đơn giá]]*Bảng_Danh_sách_Kiểm_kê[[#This Row],[Số lượng hàng còn]] -> 12,276.00 ₫ | I5: 231 | J5: 4 | K5: 50
B6: =IFERROR((Bảng_Danh_sách_Kiểm_kê[[#This Row],[Số lượng hàng còn]]<=Bảng_Danh_sách_Kiểm_kê[[#This Row],[Mức độ Đặt hàng lại]])*(Bảng_Danh_sách_Kiểm_kê[[#This Row],[Dừng nhập hàng?]]="")*valHighlight,0) -> 0 | C6: IN0003 | D6: Mục 3 | E6: Mô tả 3 | F6: 57.00 ₫ | G6: 151 | H6: =Bảng_Danh_sách_Kiểm_kê[[#This Row],[Đơn giá]]*Bảng_Danh_sách_Kiểm_kê[[#This Row],[Số lượng hàng còn]] -> 8,607.00 ₫ | I6: 114 | J6: 11 | K6: 150
B7: =IFERROR((Bảng_Danh_sách_Kiểm_kê[[#This Row],[Số lượng hàng còn]]<=Bảng_Danh_sách_Kiểm_kê[[#This Row],[Mức độ Đặt hàng lại]])*(Bảng_Danh_sách_Kiểm_kê[[#This Row],[Dừng nhập hàng?]]="")*valHighlight,0) -> 0 | C7: IN0004 | D7: Mục 4 | E7: Mô tả 4 | F7: 19.00 ₫ | G7: 186 | H7: =Bảng_Danh_sách_Kiểm_kê[[#This Row],[Đơn giá]]*Bảng_Danh_sách_Kiểm_kê[[#This Row],[Số lượng hàng còn]] -> 3,534.00 ₫ | I7: 158 | J7: 6 | K7: 50
B8: =IFERROR((Bảng_Danh_sách_Kiểm_kê[[#This Row],[Số lượng hàng còn]]<=Bảng_Danh_sách_Kiểm_kê[[#This Row],[Mức độ Đặt hàng lại]])*(Bảng_Danh_sách_Kiểm_kê[[#This Row],[Dừng nhập hàng?]]="")*valHighlight,0) -> 0 | C8: IN0005 | D8: Mục 5 | E8: Mô tả 5 | F8: 75.00 ₫ | G8: 62 | H8: =Bảng_Danh_sách_Kiểm_kê[[#This Row],[Đơn giá]]*Bảng_Danh_sách_Kiểm_kê[[#This Row],[Số lượng hàng còn]] -> 4,650.00 ₫ | I8: 39 | J8: 12 | K8: 50
B9: =IFERROR((Bảng_Danh_sách_Kiểm_kê[[#This Row],[Số lượng hàng còn]]<=Bảng_Danh_sách_Kiểm_kê[[#This Row],[Mức độ Đặt hàng lại]])*(Bảng_Danh_sách_Kiểm_kê[[#This Row],[Dừng nhập hàng?]]="")*valHighlight,0) -> 1 | C9: IN0006 | D9: Mục 6 | E9: Mô tả 6 | F9: 11.00 ₫ | G9: 5 | H9: =Bảng_Danh_sách_Kiểm_kê[[#This Row],[Đơn giá]]*Bảng_Danh_sách_Kiểm_kê[[#This Row],[Số lượng hàng còn]] -> 55.00 ₫ | I9: 9 | J9: 13 | K9: 150
B10: =IFERROR((Bảng_Danh_sách_Kiểm_kê[[#This Row],[Số lượng hàng còn]]<=Bảng_Danh_sách_Kiểm_kê[[#This Row],[Mức độ Đặt hàng lại]])*(Bảng_Danh_sách_Kiểm_kê[[#This Row],[Dừng nhập hàng?]]="")*valHighlight,0) -> 0 | C10: IN0007 | D10: Mục 7 | E10: Mô tả 7 | F10: 56.00 ₫ | G10: 58 | H10: =Bảng_Danh_sách_Kiểm_kê[[#This Row],[Đơn giá]]*Bảng_Danh_sách_Kiểm_kê[[#This Row],[Số lượng hàng còn]] -> 3,248.00 ₫ | I10: 109 | J10: 7 | K10: 100 | L10: Có
B11: =IFERROR((Bảng_Danh_sách_Kiểm_kê[[#This Row],[Số lượng hàng còn]]<=Bảng_Danh_sách_Kiểm_kê[[#This Row],[Mức độ Đặt hàng lại]])*(Bảng_Danh_sách_Kiểm_kê[[#This Row],[Dừng nhập hàng?]]="")*valHighlight,0) -> 1 | C11: IN0008 | D11: Mục 8 | E11: Mô tả 8 | F11: 38.00 ₫ | G11: 101 | H11: =Bảng_Danh_sách_Kiểm_kê[[#This Row],[Đơn giá]]*Bảng_Danh_sách_Kiểm_kê[[#This Row],[Số lượng hàng còn]] -> 3,838.00 ₫ | I11: 162 | J11: 3 | K11: 100
B12: =IFERROR((Bảng_Danh_sách_Kiểm_kê[[#This Row],[Số lượng hàng còn]]<=Bảng_Danh_sách_Kiểm_kê[[#This Row],[Mức độ Đặt hàng lại]])*(Bảng_Danh_sách_Kiểm_kê[[#This Row],[Dừng nhập hàng?]]="")*valHighlight,0) -> 0 | C12: IN0009 | D12: Mục 9 | E12: Mô tả 9 | F12: 59.00 ₫ | G12: 122 | H12: =Bảng_Danh_sách_Kiểm_kê[[#This Row],[Đơn giá]]*Bảng_Danh_sách_Kiểm_kê[[#This Row],[Số lượng hàng còn]] -> 7,198.00 ₫ | I12: 82 | J12: 3 | K12: 150
B13: =IFERROR((Bảng_Danh_sách_Kiểm_kê[[#This Row],[Số lượng hàng còn]]<=Bảng_Danh_sách_Kiểm_kê[[#This Row],[Mức độ Đặt hàng lại]])*(Bảng_Danh_sách_Kiểm_kê[[#This Row],[Dừng nhập hàng?]]="")*valHighlight,0) -> 1 | C13: IN0010 | D13: Mục 10 | E13: Mô tả 10 | F13: 50.00 ₫ | G13: 175 | H13: =Bảng_Danh_sách_Kiểm_kê[[#This Row],[Đơn giá]]*Bảng_Danh_sách_Kiểm_kê[[#This Row],[Số lượng hàng còn]] -> 8,750.00 ₫ | I13: 283 | J13: 8 | K13: 150
B14: =IFERROR((Bảng_Danh_sách_Kiểm_kê[[#This Row],[Số lượng hàng còn]]<=Bảng_Danh_sách_Kiểm_kê[[#This Row],[Mức độ Đặt hàng lại]])*(Bảng_Danh_sách_Kiểm_kê[[#This Row],[Dừng nhập hàng?]]="")*valHighlight,0) -> 1 | C14: IN0011 | D14: Mục 11 | E14: Mô tả 11 | F14: 59.00 ₫ | G14: 176 | H14: =Bảng_Danh_sách_Kiểm_kê[[#This Row],[Đơn giá]]*Bảng_Danh_sách_Kiểm_kê[[#This Row],[Số lượng hàng còn]] -> 10,384.00 ₫ | I14: 229 | J14: 1 | K14: 100
B15: =IFERROR((Bảng_Danh_sách_Kiểm_kê[[#This Row],[Số lượng hàng còn]]<=Bảng_Danh_sách_Kiểm_kê[[#This Row],[Mức độ Đặt hàng lại]])*(Bảng_Danh_sách_Kiểm_kê[[#This Row],[Dừng nhập hàng?]]="")*valHighlight,0) -> 1 | C15: IN0012 | D15: Mục 12 | E15: Mô tả 12 | F15: 18.00 ₫ | G15: 22 | H15: =Bảng_Danh_sách_Kiểm_kê[[#This Row],[Đơn giá]]*Bảng_Danh_sách_Kiểm_kê[[#This Row],[Số lượng hàng còn]] -> 396.00 ₫ | I15: 36 | J15: 12 | K15: 50
B16: =IFERROR((Bảng_Danh_sách_Kiểm_kê[[#This Row],[Số lượng hàng còn]]<=Bảng_Danh_sách_Kiểm_kê[[#This Row],[Mức độ Đặt hàng lại]])*(Bảng_Danh_sách_Kiểm_kê[[#This Row],[Dừng nhập hàng?]]="")*valHighlight,0) -> 1 | C16: IN0013 | D16: Mục 13 | E16: Mô tả 13 | F16: 26.00 ₫ | G16: 72 | H16: =Bảng_Danh_sách_Kiểm_kê[[#This Row],[Đơn giá]]*Bảng_Danh_sách_Kiểm_kê[[#This Row],[Số lượng hàng còn]] -> 1,872.00 ₫ | I16: 102 | J16: 9 | K16: 100
B17: =IFERROR((Bảng_Danh_sách_Kiểm_kê[[#This Row],[Số lượng hàng còn]]<=Bảng_Danh_sách_Kiểm_kê[[#This Row],[Mức độ Đặt hàng lại]])*(Bảng_Danh_sách_Kiểm_kê[[#This Row],[Dừng nhập hàng?]]="")*valHighlight,0) -> 1 | C17: IN0014 | D17: Mục 14 | E17: Mô tả 14 | F17: 42.00 ₫ | G17: 62 | H17: =Bảng_Danh_sách_Kiểm_kê[[#This Row],[Đơn giá]]*Bảng_Danh_sách_Kiểm_kê[[#This Row],[Số lượng hàng còn]] -> 2,604.00 ₫ | I17: 83 | J17: 2 | K17: 100
B18: =IFERROR((Bảng_Danh_sách_Kiểm_kê[[#This Row],[Số lượng hàng còn]]<=Bảng_Danh_sách_Kiểm_kê[[#This Row],[Mức độ Đặt hàng lại]])*(Bảng_Danh_sách_Kiểm_kê[[#This Row],[Dừng nhập hàng?]]="")*valHighlight,0) -> 0 | C18: IN0015 | D18: Mục 15 | E18: Mô tả 15 | F18: 32.00 ₫ | G18: 46 | H18: =Bảng_Danh_sách_Kiểm_kê[[#This Row],[Đơn giá]]*Bảng_Danh_sách_Kiểm_kê[[#This Row],[Số lượng hàng còn]] -> 1,472.00 ₫ | I18: 23 | J18: 15 | K18: 50
B19: =IFERROR((Bảng_Danh_sách_Kiểm_kê[[#This Row],[Số lượng hàng còn]]<=Bảng_Danh_sách_Kiểm_kê[[#This Row],[Mức độ Đặt hàng lại]])*(Bảng_Danh_sách_Kiểm_kê[[#This Row],[Dừng nhập hàng?]]="")*valHighlight,0) -> 1 | C19: IN0016 | D19: Mục 16 | E19: Mô tả 16 | F19: 90.00 ₫ | G19: 96 | H19: =Bảng_Danh_sách_Kiểm_kê[[#This Row],[Đơn giá]]*Bảng_Danh_sách_Kiểm_kê[[#This Row],[Số lượng hàng còn]] -> 8,640.00 ₫ | I19: 180 | J19: 3 | K19: 50
B20: =IFERROR((Bảng_Danh_sách_Kiểm_kê[[#This Row],[Số lượng hàng còn]]<=Bảng_Danh_sách_Kiểm_kê[[#This Row],[Mức độ Đặt hàng lại]])*(Bảng_Danh_sách_Kiểm_kê[[#This Row],[Dừng nhập hàng?]]="")*valHighlight,0) -> 0 | C20: IN0017 | D20: Mục 17 | E20: Mô tả 17 | F20: 97.00 ₫ | G20: 57 | H20: =Bảng_Danh_sách_Kiểm_kê[[#This Row],[Đơn giá]]*Bảng_Danh_sách_Kiểm_kê[[#This Row],[Số lượng hàng còn]] -> 5,529.00 ₫ | I20: 98 | J20: 12 | K20: 50 | L20: Có
B21: =IFERROR((Bảng_Danh_sách_Kiểm_kê[[#This Row],[Số lượng hàng còn]]<=Bảng_Danh_sách_Kiểm_kê[[#This Row],[Mức độ Đặt hàng lại]])*(Bảng_Danh_sách_Kiểm_kê[[#This Row],[Dừng nhập hàng?]]="")*valHighlight,0) -> 1 | C21: IN0018 | D21: Mục 18 | E21: Mô tả 18 | F21: 12.00 ₫ | G21: 6 | H21: =Bảng_Danh_sách_Kiểm_kê[[#This Row],[Đơn giá]]*Bảng_Danh_sách_Kiểm_kê[[#This Row],[Số lượng hàng còn]] -> 72.00 ₫ | I21: 7 | J21: 13 | K21: 50
B22: =IFERROR((Bảng_Danh_sách_Kiểm_kê[[#This Row],[Số lượng hàng còn]]<=Bảng_Danh_sách_Kiểm_kê[[#This Row],[Mức độ Đặt hàng lại]])*(Bảng_Danh_sách_Kiểm_kê[[#This Row],[Dừng nhập hàng?]]="")*valHighlight,0) -> 1 | C22: IN0019 | D22: Mục 19 | E22: Mô tả 19 | F22: 82.00 ₫ | G22: 143 | H22: =Bảng_Danh_sách_Kiểm_kê[[#This Row],[Đơn giá]]*Bảng_Danh_sách_Kiểm_kê[[#This Row],[Số lượng hàng còn]] -> 11,726.00 ₫ | I22: 164 | J22: 12 | K22: 150
B23: =IFERROR((Bảng_Danh_sách_Kiểm_kê[[#This Row],[Số lượng hàng còn]]<=Bảng_Danh_sách_Kiểm_kê[[#This Row],[Mức độ Đặt hàng lại]])*(Bảng_Danh_sách_Kiểm_kê[[#This Row],[Dừng nhập hàng?]]="")*valHighlight,0) -> 0 | C23: IN0020 | D23: Mục 20 | E23: Mô tả 20 | F23: 16.00 ₫ | G23: 124 | H23: =Bảng_Danh_sách_Kiểm_kê[[#This Row],[Đơn giá]]*Bảng_Danh_sách_Kiểm_kê[[#This Row],[Số lượng hàng còn]] -> 1,984.00 ₫ | I23: 113 | J23: 14 | K23: 50
B24: =IFERROR((Bảng_Danh_sách_Kiểm_kê[[#This Row],[Số lượng hàng còn]]<=Bảng_Danh_sách_Kiểm_kê[[#This Row],[Mức độ Đặt hàng lại]])*(Bảng_Danh_sách_Kiểm_kê[[#This Row],[Dừng nhập hàng?]]="")*valHighlight,0) -> 0 | C24: IN0021 | D24: Mục 21 | E24: Mô tả 21 | F24: 19.00 ₫ | G24: 112 | H24: =Bảng_Danh_sách_Kiểm_kê[[#This Row],[Đơn giá]]*Bảng_Danh_sách_Kiểm_kê[[#This Row],[Số lượng hàng còn]] -> 2,128.00 ₫ | I24: 75 | J24: 11 | K24: 50
B25: =IFERROR((Bảng_Danh_sách_Kiểm_kê[[#This Row],[Số lượng hàng còn]]<=Bảng_Danh_sách_Kiểm_kê[[#This Row],[Mức độ Đặt hàng lại]])*(Bảng_Danh_sách_Kiểm_kê[[#This Row],[Dừng nhập hàng?]]="")*valHighlight,0) -> 0 | C25: IN0022 | D25: Mục 22 | E25: Mô tả 22 | F25: 24.00 ₫ | G25: 182 | H25: =Bảng_Danh_sách_Kiểm_kê[[#This Row],[Đơn giá]]*Bảng_Danh_sách_Kiểm_kê[[#This Row],[Số lượng hàng còn]] -> 4,368.00 ₫ | I25: 132 | J25: 15 | K25: 150
B26: =IFERROR((Bảng_Danh_sách_Kiểm_kê[[#This Row],[Số lượng hàng còn]]<=Bảng_Danh_sách_Kiểm_kê[[#This Row],[Mức độ Đặt hàng lại]])*(Bảng_Danh_sách_Kiểm_kê[[#This Row],[Dừng nhập hàng?]]="")*valHighlight,0) -> 0 | C26: IN0023 | D26: Mục 23 | E26: Mô tả 23 | F26: 29.00 ₫ | G26: 106 | H26: =Bảng_Danh_sách_Kiểm_kê[[#This Row],[Đơn giá]]*Bảng_Danh_sách_Kiểm_kê[[#This Row],[Số lượng hàng còn]] -> 3,074.00 ₫ | I26: 142 | J26: 1 | K26: 150 | L26: Có
B27: =IFERROR((Bảng_Danh_sách_Kiểm_kê[[#This Row],[Số lượng hàng còn]]<=Bảng_Danh_sách_Kiểm_kê[[#This Row],[Mức độ Đặt hàng lại]])*(Bảng_Danh_sách_Kiểm_kê[[#This Row],[Dừng nhập hàng?]]="")*valHighlight,0) -> 0 | C27: IN0024 | D27: Mục 24 | E27: Mô tả 24 | F27: 75.00 ₫ | G27: 173 | H27: =Bảng_Danh_sách_Kiểm_kê[[#This Row],[Đơn giá]]*Bảng_Danh_sách_Kiểm_kê[[#This Row],[Số lượng hàng còn]] -> 12,975.00 ₫ | I27: 127 | J27: 9 | K27: 100
B28: =IFERROR((Bảng_Danh_sách_Kiểm_kê[[#This Row],[Số lượng hàng còn]]<=Bảng_Danh_sách_Kiểm_kê[[#This Row],[Mức độ Đặt hàng lại]])*(Bảng_Danh_sách_Kiểm_kê[[#This Row],[Dừng nhập hàng?]]="")*valHighlight,0) -> 0 | C28: IN0025 | D28: Mục 25 | E28: Mô tả 25 | F28: 14.00 ₫ | G28: 28 | H28: =Bảng_Danh_sách_Kiểm_kê[[#This Row],[Đơn giá]]*Bảng_Danh_sách_Kiểm_kê[[#This Row],[Số lượng hàng còn]] -> 392.00 ₫ | I28: 21 | J28: 8 | K28: 50
